[Event "55th Biel Festival MTO 2022"]
[Site "Biel"]
[Date "2022.07.21"]
[Round "8.37"]
[White "Matsumura, Cocoro"]
[Black "Asllani Dorian"]
[Result "1-0"]
[ECO "B31"]
[WhiteElo "2043"]
[BlackElo "2220"]
[Annotator "ChessBase"]
[PlyCount "79"]
[EventDate "2022.07.13"]
[EventType "swiss"]
[EventCountry "SUI"]
[SourceTitle "playchess.com"]
[Source "ChessBase"]
[SourceQuality "1"]
[TimeControl "40/5400+30:1800+30"]

1. e4 {[%emt 0:00:21]} c5 {[%emt 0:02:38]} 2. Nf3 {[%emt 0:00:04]} Nc6 {[%emt 0:00:10]} 3. Bb5 {[%emt 0:00:06]} g6 {[%emt 0:00:10]} 4. O-O {[%emt 0:00:08]} Bg7 {[%emt 0:00:11]} 5. d3 {[%emt 0:00:09]} Nf6 {[%emt 0:10:39]} 6. Nc3 {[%emt 0:00:19]} O-O {[%emt 0:00:32]} 7. e5 {[%emt 0:00:18]} Ne8 {[%emt 0:00:33]} 8. Bxc6 {[%emt 0:00:50]} dxc6 {[%emt 0:01:13]} 9. h3 {[%emt 0:00:11]} Bf5 {[%emt 0:01:50]} 10. Re1 {[%emt 0:07:51]} Nc7 {[%emt 0:03:42]} 11. Bf4 {[%emt 0:14:28]} Qd7 {[%emt 0:09:03]} 12. Qd2 {[%emt 0:11:29]} Rfe8 {[%emt 0:16:39]} 13. Ne4 {[%emt 0:05:05]} Bxe4 {[%emt 0:11:37]} 14. Rxe4 {[%emt 0:00:21]} Ne6 {[%emt 0:02:24]} 15. Bh6 {[%emt 0:01:22]} Bh8 {[%emt 0:00:11]} 16. Rh4 {[%emt 0:02:01]} Rad8 {[%emt 0:01:29]} 17. Re1 {[%emt 0:02:32]} Qd5 {[%emt 0:00:15]} 18. Ra4 {[%emt 0:10:53]} a6 {[%emt 0:00:50]} 19. h4 {[%emt 0:03:04]} Nd4 {[%emt 0:03:01]} 20. Nxd4 {[%emt 0:01:22]} cxd4 {[%emt 0:00:06]} 21. e6 {[%emt 0:02:26]} c5 {[%emt 0:05:15]} 22. Ra5 {[%emt 0:04:52]} fxe6 {[%emt 0:05:25]} 23. b4 {[%emt 0:00:34]} Rc8 {[%emt 0:00:14]} 24. bxc5 {[%emt 0:00:34]} Rxc5 {[%emt 0:02:24]} 25. Rxc5 {[%emt 0:02:52]} Qxc5 {[%emt 0:00:05]} 26. Rxe6 {[%emt 0:01:27]} Kf7 {[%emt 0:03:24]} 27. Qe2 {[%emt 0:06:11]} Bf6 {[%emt 0:01:01]} 28. Re4 {[%emt 0:05:33]} Rd8 {[%emt 0:05:40]} 29. g4 {[%emt 0:03:09]} Qd6 {[%emt 0:12:29]} 30. g5 {[%emt 0:02:46]} Bh8 {[%emt 0:00:01]} 31. Qf3+ {[%emt 0:00:19]} Ke8 {[%emt 0:00:52]} 32. Rf4 {[%emt 0:00:44]} Qc6 {[%emt 0:01:37]} 33. Qg4 {[%emt 0:01:23]} e6 {[%emt 0:00:35]} 34. Rf8+ {[%emt 0:00:50]} Kd7 {[%emt 0:00:01]} 35. Rxh8 {[%emt 0:00:00]} Rxh8 {[%emt 0:00:36]} 36. Qxd4+ {[%emt 0:00:00]} Kc7 {[%emt 0:00:12]} 37. Qxh8 {[%emt 0:00:21]} Qxc2 {[%emt 0:01:15]} 38. Qxh7+ {[%emt 0:01:44]} Kc6 {[%emt 0:00:40]} 39. Qxg6 {[%emt 0:00:21]} Qd1+ {[%emt 0:00:29]} 40. Kh2 {[%emt 0:00:13]} 1-0

[Event "55th Biel Festival MTO 2022"]
[Site "Biel"]
[Date "2022.07.21"]
[Round "8.38"]
[White "Mahitosh Dey"]
[Black "Akshit Kumar J"]
[Result "0-1"]
[ECO "D02"]
[WhiteElo "2212"]
[BlackElo "2103"]
[Annotator "ChessBase"]
[PlyCount "122"]
[EventDate "2022.07.13"]
[EventType "swiss"]
[EventCountry "SUI"]
[SourceTitle "playchess.com"]
[Source "ChessBase"]
[SourceQuality "1"]
[TimeControl "40/5400+30:1800+30"]

1. d4 {[%emt 0:01:10]} d5 {[%emt 0:03:29]} 2. Nf3 {[%emt 0:00:11]} Nf6 {[%emt 0:00:24]} 3. c3 {[%emt 0:00:03]} Bf5 {[%emt 0:00:32]} 4. Qb3 {[%emt 0:00:07]} Qc8 {[%emt 0:00:04]} 5. Bf4 {[%emt 0:00:30]} e6 {[%emt 0:00:08]} 6. Nbd2 {[%emt 0:00:06]} c5 {[%emt 0:00:21]} 7. e3 {[%emt 0:00:11]} Nc6 {[%emt 0:00:06]} 8. h3 {[%emt 0:00:11]} Be7 {[%emt 0:03:19]} 9. dxc5 {[%emt 0:01:15]} Bxc5 {[%emt 0:00:30]} 10. Nd4 {[%emt 0:00:24]} Bg6 {[%emt 0:06:08]} 11. N2f3 {[%emt 0:03:23]} O-O {[%emt 0:05:42]} 12. Bb5 {[%emt 0:03:22]} Nd7 {[%emt 0:18:33]} 13. O-O {[%emt 0:01:08]} Re8 {[%emt 0:00:51]} 14. c4 {[%emt 0:03:41]} Be4 {[%emt 0:13:21]} 15. Bg3 {[%emt 0:04:06]} a6 {[%emt 0:06:01]} 16. Bxc6 {[%emt 0:02:03]} bxc6 {[%emt 0:00:10]} 17. Nd2 {[%emt 0:00:56]} Bg6 {[%emt 0:05:51]} 18. cxd5 {[%emt 0:00:09]} cxd5 {[%emt 0:02:52]} 19. Rfc1 {[%emt 0:00:56]} Qd8 {[%emt 0:02:28]} 20. Nc6 {[%emt 0:01:14]} Qb6 {[%emt 0:02:03]} 21. Qxb6 {[%emt 0:00:39]} Bxb6 {[%emt 0:00:02]} 22. b4 {[%emt 0:00:06]} e5 {[%emt 0:06:34]} 23. Nb3 {[%emt 0:00:07]} f6 {[%emt 0:02:00]} 24. a4 {[%emt 0:00:06]} Kf7 {[%emt 0:02:04]} 25. b5 {[%emt 0:02:13]} a5 {[%emt 0:02:49]} 26. Ra2 {[%emt 0:00:05]} Ke6 {[%emt 0:01:35]} 27. Rd2 {[%emt 0:00:12]} Rec8 {[%emt 0:04:55]} 28. Rcd1 {[%emt 0:02:54]} Be4 {[%emt 0:03:21]} 29. Kh2 {[%emt 0:00:18]} Nb8 {[%emt 0:02:01]} 30. f3 {[%emt 0:00:33]} Bg6 {[%emt 0:00:21]} 31. Nxb8 {[%emt 0:01:33]} Raxb8 {[%emt 0:00:28]} 32. e4 {[%emt 0:01:45]} dxe4 {[%emt 0:02:37]} 33. Rd6+ {[%emt 0:00:13]} Ke7 {[%emt 0:00:09]} 34. f4 {[%emt 0:00:21]} Bh5 {[%emt 0:02:17]} 35. Rd7+ {[%emt 0:01:10]} Kf8 {[%emt 0:00:23]} 36. R1d6 {[%emt 0:01:09]} Be8 {[%emt 0:01:53]} 37. fxe5 {[%emt 0:00:47]} Bxd7 {[%emt 0:01:00]} 38. Rxd7 {[%emt 0:00:04]} Rd8 {[%emt 0:00:37]} 39. e6 {[%emt 0:01:00]} Rxd7 {[%emt 0:00:48]} 40. exd7 {[%emt 0:00:06]} Rd8 {[%emt 0:00:54]} 41. Bd6+ {[%emt 0:30:06]} Kf7 {[%emt 0:30:23]} 42. Bc5 {[%emt 0:00:05]} Bxc5 {[%emt 0:00:00]} 43. Nxc5 {[%emt 0:00:00]} Ke7 {[%emt 0:00:00]} 44. Kg3 {[%emt 0:00:00]} g5 {[%emt 0:00:00]} 45. Kf2 {[%emt 0:00:00]} f5 {[%emt 0:00:00]} 46. Ke3 {[%emt 0:00:00]} h5 {[%emt 0:00:00]} 47. Kd4 {[%emt 0:00:00]} Rb8 {[%emt 0:00:00]} 48. Ke3 {[%emt 0:00:00]} Rb6 {[%emt 0:00:00]} 49. Kd4 {[%emt 0:00:00]} Kd8 {[%emt 0:00:00]} 50. Ke3 {[%emt 0:00:00]} Kc7 {[%emt 0:00:00]} 51. g3 {[%emt 0:00:00]} Rd6 {[%emt 0:00:00]} 52. h4 {[%emt 0:00:00]} gxh4 {[%emt 0:00:00]} 53. gxh4 {[%emt 0:00:00]} Kb6 {[%emt 0:00:00]} 54. Ne6 {[%emt 0:00:00]} Rxd7 {[%emt 0:00:00]} 55. Nf4 {[%emt 0:00:00]} Rd1 {[%emt 0:01:33]} 56. Nxh5 {[%emt 0:00:00]} Rd3+ {[%emt 0:00:10]} 57. Ke2 {[%emt 0:00:00]} Rh3 {[%emt 0:00:21]} 58. Nf4 {[%emt 0:00:00]} Rxh4 {[%emt 0:00:11]} 59. Ke3 {[%emt 0:00:00]} Rh1 {[%emt 0:00:30]} 60. Nd5+ {[%emt 0:00:00]} Kc5 {[%emt 0:00:09]} 61. Ne7 {[%emt 0:00:00]} Rh3+ {[%emt 0:00:10]} 0-1

[Event "55th Biel Festival MTO 2022"]
[Site "Biel"]
[Date "2022.07.22"]
[Round "9.1"]
[White "Alekseenko, Kirill"]
[Black "Muradli, Mahammad"]
[Result "1/2-1/2"]
[ECO "B52"]
[WhiteElo "2708"]
[BlackElo "2523"]
[Annotator "TA"]
[PlyCount "83"]
[EventDate "2022.07.13"]
[EventType "swiss"]
[EventCountry "SUI"]
[SourceTitle "playchess.com"]
[Source "ChessBase"]
[SourceQuality "1"]
[TimeControl "40/5400+30:1800+30"]

{[%evp 9,83,5,10,9,4,0,1,6,0,0,2,6,0,-4,0,0,0,-4,0,0,13,24,47,41,47,50,45,47,111,113,143,133,172,164,172,81,179,-13,-10,0,-12,-244,0,0,0,-1051,0,0,0,0,235,222,479,479,479,462,456,455,479,502,481,435,410,0,0,0,0,0,0,0,0,0,0,0,0,0]} 1. e4 {[%emt 0:00:03]} c5 {[%emt 0:06:43]} 2. Nf3 {[%emt 0:00:16]} d6 {[%emt 0:00:14]} 3. Bb5+ {[%emt 0:00:34]} Bd7 {[%emt 0:00:08]} 4. c4 {[%emt 0:00:12]} Nc6 {[%emt 0:00:05]} 5. Nc3 {[%emt 0:00:59]} e5 {[%emt 0:00:06]} 6. d3 {[%emt 0:00:17] B52: Sicilian: Moscow Variation with 3...Bd7.} Nge7 {[%emt 0:00:07] [#]} 7. h4 $146 {[%emt 0:00:07][%cal Bh2h4,Bh4h5][%mdl 32]} ({Predecessor:} 7. Be3 Ng6 8. h4 Be7 9. h5 Nf8 10. Nd5 Ne6 11. h6 g6 12. a3 O-O 13. b4 {½-½ (64) Squires,M (2361)-Roberts,A (2350) ICCF email 2020}) 7... h6 {[%emt 0:00:05]} 8. a3 {[%emt 0:19:34][%cal Ob2b4]} g6 {[%emt 0:06:27]} 9. h5 {[%emt 0:15:00]} g5 {[%emt 0:00:57]} 10. Nd2 {[%emt 0:00:31]} f5 {[%emt 0:06:20]} 11. exf5 {[%emt 0:01:39]} Nxf5 {[%emt 0:05:25]} 12. Nde4 {[%emt 0:01:59][%cal Ob2b4]} Be7 {[%emt 0:00:59]} 13. Nd5 {[%emt 0:15:10]} O-O {[%emt 0:02:01]} 14. b4 {[%emt 0:01:11]} cxb4 {[%emt 0:06:12]} 15. axb4 {[%emt 0:00:09]} Be6 {[%emt 0:00:10]} 16. Bxc6 {[%emt 0:01:41]} bxc6 {[%emt 0:00:10]} 17. Nxe7+ {[%emt 0:00:19]} Qxe7 {[%emt 0:00:11]} 18. O-O {[%emt 0:00:18]} Kh8 {[%emt 0:11:15]} ({Better is} 18... d5 $14 19. Nc5 dxc4) 19. Bb2 $16 {[%emt 0:02:44]} Kh7 {[%emt 0:02:07]} 20. Ra5 {[%emt 0:04:20]} Nh4 {[%emt 0:05:10]} 21. f3 {[%emt 0:00:32]} Rf7 {[%emt 0:04:24]} 22. Qa4 {[%emt 0:03:56]} (22. c5 $1 $18 {[%cal Rc5d6]}) 22... Qd7 {[%emt 0:03:55]} (22... d5 $16 {was called for.}) 23. b5 $2 {[%emt 0:01:25] [#]} (23. Ra6 $1 $18) 23... Bh3 $1 $11 {[%emt 0:06:41]} 24. bxc6 {[%emt 0:12:31]} Qe6 {[%emt 0:00:05]} 25. Nxd6 $2 {[%emt 0:09:46]} (25. gxh3 $2 Qxh3 26. Rf2 Nxf3+ 27. Rxf3 Qxf3 $19) (25. Rf2 $2 Bxg2 26. Rxg2 Qh3 $19) (25. Qb5 $1 $11 Bxg2 26. Qd5 Qxd5 27. Rxd5 Bxf1 28. Kxf1) 25... Bxg2 $2 {[%emt 0:03:44]} ({Black should try} 25... Qxd6 $19 26. Rd5 (26. gxh3 $2 e4 $19) 26... Qe7 $1 27. gxh3 Qe6) 26. Nxf7 {[%emt 0:01:26] Active counter play!} Qh3 {[%emt 0:00:05]} 27. Qd1 $2 {[%emt 0:02:53][%mdl 8192]} (27. Nxe5 $11 Kg8 28. Qd1 (28. Rxa7 $2 Qh1+ 29. Kf2 Qxf1+ 30. Ke3 Qe1+ 31. Kd4 Rxa7 $19)) 27... Nxf3+ $2 {[%emt 0:09:21]} (27... Bxf3 $19 {( -> ...Qg3#)} 28. Qxf3 Nxf3+ 29. Rxf3 Qxf3) 28. Kf2 {[%emt 0:00:45][%cal Bg1f2,Bf2e1,Be1d2,Bd2c3,Bc3b3][%mdl 32]} Nh2 $1 {[%emt 0:00:41]} 29. Rg1 {[%emt 0:03:57]} Ng4+ $2 {[%emt 0:00:11]} (29... Rf8 $11 {and Black is okay.} 30. Rxa7 (30. Rxg2 $2 Rxf7+ 31. Kg1 Nf3+ 32. Kf2 Nh4+ 33. Ke1 Qxg2 $19) 30... Ng4+ 31. Qxg4 Qxg4 32. Rxg2 Qd1) 30. Ke1 $18 {[%emt 0:00:42]} Qe3+ $2 {[%emt 0:00:25]} (30... Bf3 31. Qc2 Qh4+ 32. Kd2 Qf2+ 33. Kc3 Qxg1) 31. Qe2 {[%emt 0:00:01]} Qxg1+ {[%emt 0:00:09]} 32. Kd2 {[%emt 0:00:03]} e4 {[%emt 0:08:30][%cal Oa8b8] aiming for ...Rb8!} (32... Qb6 $2 33. Rb5 Qf2 34. Qxf2 Nxf2 35. Nxe5) 33. Qxg4 {[%emt 0:00:21]} Qf2+ {[%emt 0:00:06] [#]} 34. Kc3 $1 {[%emt 0:00:48]} Qe1+ {[%emt 0:00:01]} 35. Kb3 {[%emt 0:00:47]} Qxa5 {[%emt 0:01:16]} 36. Nd6 $2 {[%emt 0:00:44]} ({White has to play} 36. Qxg2 $18 Rb8+ 37. Kc2 Qa4+ 38. Kc1 Qxc6 39. Qf2 (39. Qxe4+ Qxe4 40. dxe4 g4 $16)) 36... Rb8+ $11 {[%emt 0:01:13] The position is equal.} 37. Nb5 {[%emt 0:00:45] The board is on fire.} Rxb5+ {[%emt 0:02:39]} 38. cxb5 {[%emt 0:00:04]} Qxb5+ {[%emt 0:00:06]} 39. Ka2 {[%emt 0:00:28] White wants to mate with Qd7+.} Qd5+ {[%emt 0:01:48]} ({Don't take} 39... Qxc6 40. Qxg2 Qd5+ 41. Ka1 Qxd3 42. Qf2 Qa6+ 43. Kb1 Qd3+ 44. Ka2 Qd5+ 45. Ka3 Qd6+ 46. Ka2 Qe6+ 47. Kb1 $16) 40. Ka1 {[%emt 0:00:26] Intending Qd7+ and mate.} Qa5+ {[%emt 0:02:15]} (40... exd3 {is a self mate.} 41. Qd7+ Qxd7 42. cxd7 d2 43. d8=Q d1=Q+ 44. Qxd1 Kg8 45. Qd7 Kf8 46. Bf6 Bh1 47. Qg7+ Ke8 48. Qe7#) (40... Qxc6 41. Qxg2 Qa6+ 42. Kb1 Qxd3+ 43. Qc2) 41. Kb1 {[%emt 0:01:30] Qd7+ would kill now.} Qe1+ {[%emt 0:00:07]} 42. Ka2 {[%emt 0:03:28] White really could win this.  Weighted Error Value: White=0.55/Black=0.49} 1/2-1/2

[Event "55th Biel Festival MTO 2022"]
[Site "Biel"]
[Date "2022.07.22"]
[Round "9.2"]
[White "Mendonca, Leon Luke"]
[Black "Sargsyan, Shant"]
[Result "1/2-1/2"]
[ECO "A14"]
[WhiteElo "2567"]
[BlackElo "2661"]
[Annotator "TA"]
[PlyCount "57"]
[EventDate "2022.07.13"]
[EventType "swiss"]
[EventCountry "SUI"]
[SourceTitle "playchess.com"]
[Source "ChessBase"]
[SourceQuality "1"]
[TimeControl "40/5400+30:1800+30"]

{[%evp 18,57,9,0,7,0,0,6,0,0,0,0,0,0,0,0,0,0,0,0,6,8,16,13,12,12,22,19,33,28,34,27,41,27,41,41,46,39,30,35,56,21]} 1. c4 {[%emt 0:00:20]} Nf6 {[%emt 0:01:49]} 2. Nf3 {[%emt 0:00:26]} e6 {[%emt 0:00:42]} 3. b3 {[%emt 0:00:26]} d5 {[%emt 0:01:29]} 4. Bb2 {[%emt 0:00:07]} b6 {[%emt 0:01:22]} 5. g3 {[%emt 0:01:29]} Bb7 {[%emt 0:00:37]} 6. Bg2 {[%emt 0:00:07]} dxc4 {[%emt 0:03:00]} 7. bxc4 {[%emt 0:00:13]} c5 {[%emt 0:00:15]} 8. O-O {[%emt 0:01:36]} Be7 {[%emt 0:00:16]} 9. d3 {[%emt 0:01:06]} O-O {[%emt 0:00:10]} 10. Nbd2 {[%emt 0:01:23]} Qc7 {[%emt 0:02:35] A14: English Opening: 1...e6 with b3 by White.} 11. Be5 {[%emt 0:13:35]} Qc8 {[%emt 0:03:22] [#]} 12. Bc3 $146 {[%emt 0:01:45]} ({Predecessor:} 12. Qc2 Nc6 13. Bc3 Rd8 14. Qb2 Ne8 15. Ne4 f6 16. Bh3 Nc7 17. Rad1 Qd7 18. a3 {½-½ (50) Deglmann,L (2235)-Fuhrmann,D (2295) Germany 1997}) 12... Nc6 {[%emt 0:04:42] The position is equal.} 13. Qb3 {[%emt 0:07:18]} Nd7 {[%emt 0:01:30]} 14. Qb2 {[%emt 0:12:15]} Bf6 {[%emt 0:01:30]} 15. Bxf6 {[%emt 0:01:46]} Nxf6 {[%emt 0:00:21]} 16. Ne5 {[%emt 0:02:32]} Nxe5 {[%emt 0:08:38]} 17. Qxe5 {[%emt 0:00:26]} Nd7 {[%emt 0:01:04][%cal Bf6d7,Bd7e5,Be5c6,Bc6b4][%mdl 32]} 18. Bxb7 {[%emt 0:08:48]} Nxe5 {[%emt 0:01:22]} 19. Bxc8 {[%emt 0:00:07]} Rfxc8 {[%emt 0:00:07]} 20. a4 {[%emt 0:03:33]} Nc6 {[%emt 0:00:50]} 21. Nb3 {[%emt 0:01:07]} a5 {[%emt 0:01:40]} 22. Rab1 {[%emt 0:03:03]} Ra7 {[%emt 0:02:27]} 23. Nd2 {[%emt 0:01:44]} Nb4 {[%emt 0:00:25]} 24. f4 {[%emt 0:07:13]} Rd7 {[%emt 0:01:11]} 25. Kf2 {[%emt 0:03:37]} Kf8 {[%emt 0:07:39]} 26. g4 {[%emt 0:12:50][%cal Bg3g4,Bg4g5][%mdl 32]} Ke7 {[%emt 0:00:11]} 27. g5 {[%emt 0:09:16]} h6 {[%emt 0:03:43]} 28. h4 {[%emt 0:00:50]} h5 {[%emt 0:01:37]} 29. Nf3 {[%emt 0:02:54] Weighted Error Value: White=0.03 (flawless) /Black=0.05 (flawless)} 1/2-1/2

[Event "55th Biel Festival MTO 2022"]
[Site "Biel"]
[Date "2022.07.22"]
[Round "9.3"]
[White "Sethuraman, S.P."]
[Black "Visakh N R"]
[Result "1/2-1/2"]
[ECO "C92"]
[WhiteElo "2623"]
[BlackElo "2503"]
[Annotator "TA"]
[PlyCount "60"]
[EventDate "2022.07.13"]
[EventType "swiss"]
[EventCountry "SUI"]
[SourceTitle "playchess.com"]
[Source "ChessBase"]
[SourceQuality "1"]
[TimeControl "40/5400+30:1800+30"]

{[%evp 19,60,22,25,0,20,11,12,5,0,9,6,8,7,11,25,0,20,17,22,19,13,10,16,0,10,0,35,45,37,35,41,50,61,42,57,0,0,0,0,0,0,0,0]} 1. e4 {[%emt 0:00:21]} e5 {[%emt 0:00:17]} 2. Nf3 {[%emt 0:00:07]} Nc6 {[%emt 0:00:12]} 3. Bb5 {[%emt 0:00:06]} a6 {[%emt 0:00:12]} 4. Ba4 {[%emt 0:00:07]} Nf6 {[%emt 0:00:04]} 5. O-O {[%emt 0:00:05]} Be7 {[%emt 0:00:06]} 6. Re1 {[%emt 0:00:03]} b5 {[%emt 0:00:14]} 7. Bb3 {[%emt 0:00:06]} d6 {[%emt 0:00:08]} 8. c3 {[%emt 0:00:04]} O-O {[%emt 0:00:07]} 9. h3 {[%emt 0:00:03]} Re8 {[%emt 0:00:09]} 10. d4 {[%emt 0:00:17]} Bb7 {[%emt 0:00:05][%cal Bc8b7,Bb7c6,Bc6d7][%mdl 32]} 11. a3 {[%emt 0:00:14] C92: Closed Ruy Lopez: 9...Be6, Karpov and Flohr-Zaitsev Variations.} Bf8 {[%emt 0:05:33]} 12. d5 {[%emt 0:00:12] Nowadays more popular than 12.Nbd2.} Na5 {[%emt 0:19:52]} 13. Ba2 {[%emt 0:00:34]} c6 {[%emt 0:00:33]} 14. dxc6 {[%emt 0:00:06]} Bxc6 {[%emt 0:00:58]} 15. Bg5 {[%emt 0:00:06]} h6 {[%emt 0:02:17]} 16. Bxf6 {[%emt 0:03:55]} Qxf6 {[%emt 0:00:03] [#]} 17. Nbd2 $146 {[%emt 0:01:11][%cal Bb1d2,Bd2f1,Bf1e3][%mdl 32]} ({Predecessor:} 17. Nfd2 Rec8 18. c4 Nb7 19. Re3 Be8 20. Nc3 Nc5 21. Nd5 Qd8 22. Rc1 Ne6 23. Rec3 {½-½ (41) Janisch,M (2438)-Schulz,G (2438) ICCF email 2020}) 17... Bd7 {[%emt 0:02:09]} 18. b4 {[%emt 0:05:20]} Nc6 {[%emt 0:00:05]} 19. Nf1 {[%emt 0:00:24]} Ne7 {[%emt 0:08:14]} 20. Ne3 {[%emt 0:07:32]} Rec8 {[%emt 0:00:55]} 21. Rc1 {[%emt 0:17:19]} a5 {[%emt 0:11:34]} 22. Bb3 {[%emt 0:01:26]} Be6 {[%emt 0:01:56]} 23. Bxe6 {[%emt 0:11:18]} Qxe6 {[%emt 0:00:13]} 24. Qd3 {[%emt 0:00:05]} Qb3 {[%emt 0:19:35]} 25. Qxb5 {[%emt 0:19:13]} axb4 {[%emt 0:01:04]} 26. axb4 {[%emt 0:04:00] Threatens to win with Nd2.} Rxc3 {[%emt 0:00:06]} 27. Qb7 {[%emt 0:06:03]} ({White should try} 27. Rb1 $14 Qe6 28. Qb7) 27... Rxc1 $11 {[%emt 0:02:29] The position is equal.} 28. Rxc1 {[%emt 0:00:08]} Ra2 {[%emt 0:00:10]} 29. Qb8 {[%emt 0:09:31]} Qb2 {[%emt 0:02:29]} 30. Rf1 {[%emt 0:00:04] Active counter play!} Ra4 {[%emt 0:01:33] Weighted Error Value: White=0.07 (flawless) /Black=0.05 (flawless)} 1/2-1/2

[Event "55th Biel Festival MTO 2022"]
[Site "Biel"]
[Date "2022.07.22"]
[Round "9.4"]
[White "Raja Harshit"]
[Black "Fedoseev, Vladimir"]
[Result "0-1"]
[ECO "B42"]
[WhiteElo "2477"]
[BlackElo "2686"]
[Annotator "TA"]
[PlyCount "94"]
[EventDate "2022.07.13"]
[EventType "swiss"]
[EventCountry "SUI"]
[SourceTitle "playchess.com"]
[Source "ChessBase"]
[SourceQuality "1"]
[TimeControl "40/5400+30:1800+30"]

{[%evp 10,94,42,40,85,22,25,20,35,-6,29,25,24,17,16,0,27,17,40,29,29,25,37,43,45,41,83,77,78,81,81,82,86,46,58,27,27,18,22,18,12,0,0,-8,-8,-8,-8,-8,-8,-8,0,0,0,-8,-8,-153,-153,-154,-154,-154,-154,-154,-154,-154,-154,-154,-154,-154,-154,-154,-154,-154,-73,-73,-43,-44,-40,-171,-35,-182,-164,-29972,-29973,-29971,-13,-29969,-11931]} 1. e4 {[%emt 0:00:12]} c5 {[%emt 0:04:23]} 2. Nf3 {[%emt 0:00:16]} e6 {[%emt 0:00:08]} 3. d4 {[%emt 0:00:10]} cxd4 {[%emt 0:00:07]} 4. Nxd4 {[%emt 0:00:07]} a6 {[%emt 0:00:14]} 5. Bd3 {[%emt 0:00:17]} Qc7 {[%emt 0:00:08]} 6. O-O {[%emt 0:01:57]} g6 {[%emt 0:00:57] B42: Sicilian: Kan Variation: 5 Bd3.} 7. b3 {[%emt 0:04:13]} (7. Be3 $16) 7... Bg7 $11 {[%emt 0:01:39]} 8. Bb2 {[%emt 0:01:26]} Nf6 $1 {[%emt 0:00:11] [#] The position is equal.} 9. Qf3 $146 {[%emt 0:03:55][%cal Od4b5]} ({Predecessor:} 9. Nd2 O-O 10. c4 d6 11. f4 Nh5 12. Kh1 Nc6 13. e5 Nxd4 14. Bxd4 dxe5 15. Bxe5 Bxe5 16. fxe5 Qxe5 {½-½ (42) Kaczmarek,A (2368)-Bilguun,S (2443) Suwalki 2017}) 9... Nh5 {[%emt 0:02:51]} (9... e5 $5 {[%cal Re5d4]} 10. Ne2 d5 $11) 10. Nd2 {[%emt 0:09:20][%cal Bb1d2,Bd2c4,Bc4b6][%mdl 32]} O-O {[%emt 0:01:59]} 11. Qe3 {[%emt 0:02:30]} d6 {[%emt 0:07:17]} 12. a4 {[%emt 0:03:37]} Nc6 {[%emt 0:04:38]} 13. Nc4 {[%emt 0:03:44]} d5 {[%emt 0:00:42]} 14. exd5 {[%emt 0:04:32]} exd5 {[%emt 0:00:11]} 15. Nxc6 {[%emt 0:01:36]} bxc6 {[%emt 0:00:34]} 16. Bxg7 {[%emt 0:00:15]} Nxg7 {[%emt 0:00:05][%cal Bh5g7,Bg7e6,Be6c5][%mdl 32]} 17. Nb6 {[%emt 0:05:41]} Rb8 {[%emt 0:00:01]} 18. a5 {[%emt 0:01:44]} Bb7 {[%emt 0:00:12][%cal Bc8b7,Bb7d5,Bd5e4][%mdl 32]} 19. Qg3 {[%emt 0:10:09]} Qxg3 {[%emt 0:03:43]} 20. hxg3 {[%emt 0:00:20] Strongly threatening Nd7.} Rfd8 {[%emt 0:00:30] Inhibits Nd7.} 21. c4 {[%emt 0:02:00]} Ne6 {[%emt 0:07:31]} 22. b4 {[%emt 0:16:39] Inhibits Nc5.} c5 {[%emt 0:05:06]} 23. cxd5 {[%emt 0:01:28]} Bxd5 {[%emt 0:00:14]} 24. Bxa6 {[%emt 0:01:22]} cxb4 {[%emt 0:00:09]} 25. Rab1 {[%emt 0:06:04]} Nc5 {[%emt 0:01:52]} 26. Be2 {[%emt 0:04:01]} b3 {[%emt 0:00:12]} 27. Rfc1 {[%emt 0:02:30]} Be4 {[%emt 0:00:22]} 28. Rb2 {[%emt 0:00:09]} Bc2 {[%emt 0:00:10]} 29. Bc4 {[%emt 0:03:10]} Nd3 {[%emt 0:08:59]} 30. Bxd3 {[%emt 0:03:12]} Rxd3 {[%emt 0:00:31]} 31. Nc4 {[%emt 0:00:09]} Ra8 $36 {[%emt 0:00:00][%mdl 2048] Black is pushing.} 32. Ne3 {[%emt 0:04:06]} (32. Ra1 $11 {keeps the balance.}) 32... Rxa5 $17 {[%emt 0:00:00] Hoping for ...Ra2.} 33. Nxc2 {[%emt 0:00:43] Ne1 is the strong threat.} Rc3 {[%emt 0:00:00][%mdl 64] Pin} 34. Rcb1 {[%emt 0:02:30] And now Na1 would win.} bxc2 {[%emt 0:00:00][%mdl 4096] Endgame KRR-KRR} 35. Rc1 {[%emt 0:00:02]} Rac5 {[%emt 0:00:06]} 36. Kf1 {[%emt 0:00:03]} Rc8 {[%emt 0:01:01]} 37. Ke2 {[%emt 0:01:32]} R3c6 $1 {[%emt 0:00:05]} 38. Kd3 {[%emt 0:02:59][%cal Rb2c2]} Rd6+ $1 {[%emt 0:00:35]} 39. Ke2 {[%emt 0:00:33]} Re8+ {[%emt 0:00:45]} 40. Kf3 {[%emt 0:00:02]} h5 {[%emt 0:08:17]} (40... Rf6+ $142 41. Kg4 Rxf2 42. Rcxc2 Re4+ 43. Kh3 Rxc2 44. Rxc2 h5) 41. g4 {[%emt 0:04:25]} h4 {[%emt 0:01:47][%cal Rd6f6] Black is more active.} 42. g5 {[%emt 0:05:02] Inhibits Rf6+.} Rd3+ {[%emt 0:01:17]} 43. Kf4 {[%emt 0:00:06] [#]} (43. Kg4 $1 $15) 43... Rd4+ $1 $19 {[%emt 0:00:05]} 44. Kf3 {[%emt 0:00:05] [#]} f5 $1 {[%emt 0:00:56] ( -> ...Rd3+)} ({Stronger than} 44... Rd3+ 45. Kg4 $17) 45. gxf6 $2 {[%emt 0:02:26]} (45. g4 $19) 45... g5 {[%emt 0:00:31][%csl Gd4][%cal Rg5g4]} 46. g4 {[%emt 0:00:46]} Rf4+ {[%emt 0:00:00]} 47. Kg2 {[%emt 0:00:19]} Re2 {[%emt 0:00:00] Weighted Error Value: White=0.31/Black=0.06 (flawless)} 0-1